bitfinex-derivatives/quotes_SOLF0:USTF0_20260302
["timestamp","ask_amount","ask_price","bid_price","bid_amount"]
[1772437333872,4.97973879,83.098,83.06,3.97753021]
[1772437336580,41.01750339,83.09,83.05,3.97753021]
[1772437338878,37.05720698,83.114,83.066,10.835]
[1772437339078,3.97753021,83.08,83.04,3.97753021]
[1772437339283,37.05720698,83.089,83.04,3.97753021]
[1772437339876,37.05720698,83.089,83.05,3.97753021]
[1772437340081,37.05720698,83.089,83.06,3.97753021]
[1772437342581,37.05720698,83.089,83.05,3.97753021]
[1772437344277,37.05720698,83.089,83.06,3.97753021]
[1772437345885,37.05720698,83.089,83.05,3.97753021]
[1772437346684,37.05720698,83.089,83.06,3.97753021]
[1772437349983,37.05720698,83.089,83.05,3.97753021]
[1772437353585,37.05720698,83.089,83.04,3.97753021]
[1772437354989,37.05720698,83.089,83.05,3.97753021]
[1772437355993,37.05720698,83.089,83.06,3.97753021]
[1772437356593,37.05720698,83.089,83.051,10.837]
[1772437357094,37.05720698,83.089,83.041,10.838]
[1772437357395,36.42638002,83.149,83.03,3.97753021]
[1772437357396,37.01823581,83.079,83.03,3.97753021]
[1772437358093,37.01823581,83.069,83.02,3.97753021]
[1772437358493,40.99667179,83.07,83.02,3.97753021]
[1772437359289,37.01907262,83.059,83.02,3.97753021]
[1772437363797,37.01907262,83.059,83.013,10.842]
[1772437364494,37.01907262,83.059,83.02,3.97753021]
[1772437365695,37.01907262,83.059,83.03,3.97753021]
[1772437365891,37.01907262,83.059,83.021,10.841]
[1772437366095,37.01907262,83.059,83.03,3.97753021]
[1772437366294,37.07022249,83.087,83.04,3.97753021]
[1772437366501,37.07022249,83.087,83.05,3.97753021]
[1772437373808,37.07022249,83.087,83.043,11.20857682]
[1772437374202,37.07022249,83.087,83.045,11.20857682]
[1772437375205,37.07022249,83.087,83.047,11.20857682]
[1772437375406,37.07022249,83.087,83.048,11.20857682]
[1772437376606,37.07022249,83.087,83.05,3.97753021]
[1772437377309,37.07022249,83.087,83.05,15.18610703]
[1772437379210,37.07022249,83.087,83.05,3.97753021]
[1772437379907,37.07022249,83.087,83.05,15.18610703]
[1772437380305,37.07022249,83.087,83.051,11.20857682]
[1772437380805,37.07022249,83.087,83.056,11.20857682]
[1772437382710,37.07022249,83.087,83.06,3.97753021]
[1772437386106,37.03006053,83.113,83.07,3.97753021]
[1772437386314,37.03006053,83.113,83.08,3.97753021]
[1772437386713,37.03006053,83.113,83.078,11.20857682]
[1772437387016,37.03199357,83.109,83.078,11.20857682]
[1772437387212,37.03199357,83.109,83.076,11.20857682]
[1772437388015,37.03168822,83.099,83.05,3.97753021]
[1772437388214,29.55879001,83.089,83.05,3.97753021]
[1772437394624,29.55879001,83.089,83.05,3.97420127]
[1772437399432,29.55879001,83.089,83.04,3.97420127]
[1772437404334,29.55879001,83.089,83.039,10.838]
[1772437404335,29.55879001,83.089,83.05,3.97420127]
[1772437406443,51.04132136,83.144,82.99,37.55857379]
[1772437406444,29.51251377,83.101,83.07,3.97420127]
[1772437407040,29.51251377,83.101,83.08,3.97420127]
[1772437407241,29.51251377,83.101,83.008,168.668]
[1772437407242,29.51251377,83.101,83.07,3.97420127]
[1772437413647,29.51251377,83.101,83.062,10.835]
[1772437414537,29.51251377,83.101,83.07,3.97420127]
[1772437421857,29.51251377,83.101,83.062,10.835]
[1772437422656,29.51251377,83.101,83.07,3.97420127]
[1772437425754,29.50798356,83.132,83.08,3.97420127]
[1772437425953,29.50798356,83.132,83.09,3.97420127]
[1772437427355,29.50798356,83.132,83.1,3.97420127]
[1772437428260,29.50798356,83.132,83.105,10.83]
[1772437429161,29.50798356,83.132,83.11,3.97420127]
[1772437435064,29.50798356,83.132,83.105,10.83]
[1772437436067,29.50798356,83.132,83.1,3.97420127]
[1772437441070,29.7280805,83.129,83.083,10.833]
[1772437441265,29.7280805,83.129,83.08,3.97420127]
[1772437441874,29.7280805,83.129,83.081,10.833]
[1772437442368,29.7280805,83.129,83.09,14.80620127]
[1772437443165,29.7280805,83.129,83.1,3.97420127]
[1772437443766,29.7280805,83.129,83.11,3.97420127]
[1772437449478,29.7280805,83.129,83.1,3.97420127]
[1772437449678,29.7280805,83.129,83.093,10.831]
[1772437449977,29.7280805,83.129,83.09,3.97420127]
[1772437450770,29.7280805,83.129,83.08,3.97420127]
[1772437450980,29.7280805,83.129,83.084,10.833]
[1772437451781,29.73920213,83.119,83.075,11.20193235]
[1772437452271,29.73920213,83.119,83.076,11.20193235]
[1772437452474,29.73920213,83.119,83.082,11.20193235]
[1772437452677,29.73920213,83.119,83.072,11.20193235]
[1772437453873,29.73920213,83.119,83.073,11.20193235]
[1772437455083,29.73920213,83.119,83.073,22.03593235]
[1772437455684,29.73920213,83.119,83.08,3.97420127]
[1772437456478,29.73920213,83.119,83.08,3.9712718]
[1772437456885,29.73920213,83.119,83.074,11.20193235]
[1772437457786,29.73920213,83.119,83.08,3.9712718]
[1772437459391,29.73920213,83.119,83.074,11.20193235]
[1772437460090,29.73920213,83.119,83.075,11.20193235]
[1772437461392,29.73920213,83.119,83.054,22.52113301]
[1772437461393,29.73920213,83.119,83.08,3.9712718]
[1772437461587,29.73920213,83.119,83.08,15.17320415]
[1772437461790,29.62044642,83.149,83.09,3.9712718]
[1772437461991,29.62044642,83.149,83.044,21.676]
[1772437461992,29.62044642,83.149,83.1,3.9712718]
[1772437462586,29.60223795,83.146,83.1,3.9712718]
[1772437462890,29.60223795,83.139,83.092,11.20193235]
[1772437464094,29.60223795,83.139,83.092,22.03393235]
[1772437464395,29.60223795,83.139,83.093,11.20193235]
[1772437465094,29.60223795,83.139,83.095,10.831]
[1772437465293,29.60223795,83.139,83.094,11.20193235]
[1772437465689,29.60223795,83.139,83.093,11.20193235]
[1772437465888,29.60223795,83.139,83.094,11.20193235]
[1772437466087,29.60223795,83.139,83.093,11.20193235]
[1772437466294,29.60223795,83.139,83.094,11.20193235]
[1772437466792,29.60223795,83.139,83.1,3.9712718]
[1772437466988,29.60223795,83.139,83.103,11.20193235]
[1772437467592,29.60223795,83.139,83.108,11.20193235]
[1772437468293,29.60223795,83.139,83.109,11.20193235]
[1772437468797,29.60223795,83.139,83.108,11.20193235]
[1772437469197,29.60223795,83.139,83.109,11.20193235]
[1772437469593,29.60223795,83.139,83.098,14.99402468]
[1772437469800,10.86313723,83.129,83.08,3.9712718]
[1772437471197,10.86313723,83.129,83.084,10.833]
[1772437471501,10.86313723,83.129,83.08,3.9712718]
[1772437476107,10.86313723,83.129,83.09,3.9712718]
[1772437477402,10.86313723,83.129,83.083,10.833]
[1772437480710,10.86313723,83.129,83.09,3.9712718]
[1772437482810,10.86313723,83.129,83.083,10.833]
[1772437488014,10.86313723,83.129,83.092,10.832]
[1772437488224,10.89529112,83.149,83.11,3.9712718]
[1772437488614,10.89529112,83.149,83.117,10.828]
[1772437489309,3.9712718,83.16,83.13,3.9712718]
[1772437489310,10.90181007,83.16,83.13,3.9712718]
[1772437489919,10.90179772,83.17,83.13,3.9712718]
[1772437491213,10.90179772,83.17,83.14,3.9712718]
[1772437491418,10.90179772,83.17,83.13,14.7982718]
[1772437494120,10.80014275,83.169,83.12,3.9712718]
[1772437495518,10.92859056,83.189,83.097,21.662]
[1772437495719,3.9712718,83.18,83.14,3.9712718]
[1772437495911,10.92859056,83.179,83.13,3.9712718]
[1772437496112,10.92859056,83.179,83.14,3.9712718]
[1772437497119,10.92859056,83.179,83.141,10.825]
[1772437498217,10.92859056,83.179,83.131,10.826]
[1772437499519,10.92859056,83.179,83.121,10.828]
[1772437499720,10.90797346,83.169,83.12,3.9712718]
[1772437500424,10.90797346,83.169,83.13,14.7982718]
[1772437500820,10.90797346,83.169,83.14,3.9712718]
[1772437501325,10.90797346,83.169,83.13,14.7982718]
[1772437502227,10.90797346,83.169,83.13,10.827]
[1772437502622,10.90797346,83.169,83.12,14.7992718]
[1772437504017,10.90797346,83.169,83.13,3.9712718]
[1772437507626,10.90797346,83.169,83.131,10.827]
[1772437509329,10.90797346,83.169,83.139,10.825]
[1772437509831,10.7775031,83.186,83.143,10.825]
[1772437510429,3.9712718,83.19,83.143,10.825]
[1772437510430,10.70063514,83.179,83.143,10.825]
[1772437511628,10.70030822,83.169,83.133,10.826]
[1772437516334,10.70030822,83.169,83.106,14.91465901]
[1772437516637,10.70030822,83.169,83.096,22.52113301]
[1772437516638,10.7061238,83.159,83.11,3.96744948]
[1772437517033,10.7061238,83.159,83.112,10.829]
[1772437517634,10.7061238,83.159,83.121,10.828]
[1772437527638,10.7061238,83.159,83.12,3.96744948]
[1772437527840,10.7061238,83.159,83.112,10.829]
[1772437528248,10.821,83.172,83.112,10.829]
[1772437528249,10.71657778,83.149,83.112,10.829]
[1772437533052,10.71657778,83.149,83.102,10.83]
[1772437533848,10.71657778,83.149,83.1,3.96744948]
[1772437535853,10.71657778,83.149,83.102,10.83]
[1772437536255,10.71657778,83.149,83.1,3.96744948]
[1772437537248,3.96744948,83.14,83.1,3.96744948]
[1772437537450,10.70985261,83.139,83.1,3.96744948]
[1772437539452,10.70985261,83.139,83.092,10.832]
[1772437539647,10.71710708,83.161,83.121,10.828]
[1772437539951,10.71710708,83.159,83.12,3.96744948]
[1772437540152,10.71710708,83.159,83.11,3.96744948]
[1772437541358,10.70638922,83.149,83.1,14.79744948]
[1772437542956,10.72325088,83.139,83.1,14.79744948]
[1772437543150,10.72325088,83.139,83.091,14.91465901]
[1772437543151,10.72325088,83.139,83.091,10.832]
[1772437543960,10.72306151,83.129,83.091,10.832]
[1772437545655,10.72306151,83.129,83.082,42.87057412]
[1772437547560,10.74620774,83.119,83.073,10.834]
[1772437550562,10.73133464,83.13,83.09,3.96744948]
[1772437550865,10.73133464,83.13,83.1,3.96744948]
[1772437551258,10.73133464,83.13,83.091,10.832]
[1772437552662,10.91020435,83.129,83.091,10.832]
[1772437567466,3.96744948,83.12,83.082,10.833]
[1772437567672,10.70361884,83.119,83.082,10.833]
[1772437568467,10.70361884,83.119,83.091,10.832]
[1772437568672,10.70361884,83.119,83.045,21.676]
[1772437568673,10.69090079,83.13,83.09,3.96744948]
[1772437569175,10.69090079,83.13,83.1,10.831]
[1772437569367,10.69090079,83.13,83.09,3.96744948]
[1772437570173,10.69090079,83.13,83.091,10.832]
[1772437570374,10.69074161,83.129,83.091,10.832]
[1772437571179,10.69074161,83.129,83.09,3.96744948]
[1772437571675,10.67376431,83.129,83.08,3.96744948]
[1772437573278,10.67376431,83.129,83.08,14.80044948]
[1772437576577,10.78357475,83.119,83.08,14.80044948]
[1772437576781,10.78357475,83.119,83.07,14.91465901]
[1772437576782,10.78357475,83.119,83.071,10.834]
[1772437581582,0.00063631,83.129,83.091,7.42972816]
[1772437581775,3.9717079,83.14,83.091,7.42972816]
[1772437582675,22.54783491,83.15,83.111,7.44151578]
[1772437582879,26.51954281,83.15,83.111,7.44151578]
[1772437585876,8.88410341,83.149,83.1,14.8017079]
[1772437586076,8.88410341,83.149,83.101,7.20514733]
[1772437587181,8.88410341,83.149,83.11,3.9717079]
[1772437587683,8.88410341,83.149,83.106,7.22356831]
[1772437588281,8.88410341,83.149,83.107,7.24151602]
[1772437590087,8.88410341,83.149,83.11,3.9717079]
[1772437590385,8.88410341,83.149,83.111,7.21160763]
[1772437594884,8.88410341,83.149,83.087,22.52113301]
[1772437594885,8.88410341,83.159,83.121,7.30745674]
[1772437595082,3.9717079,83.17,83.121,7.30745674]
[1772437596193,3.9717079,83.16,83.123,7.32375664]
[1772437598091,12.85581131,83.16,83.123,7.32375664]
[1772437598281,8.88410341,83.159,83.123,7.32375664]
[1772437598591,13.28249168,83.204,83.108,14.91465901]
[1772437598592,8.88410341,83.149,83.108,7.52198263]
[1772437599890,3.9717079,83.14,83.108,7.52198263]
[1772437601190,3.9717079,83.14,83.109,10.829]
[1772437601491,8.88410341,83.149,83.109,18.50687148]
[1772437603591,3.9717079,83.14,83.109,18.50687148]
[1772437604497,8.88410341,83.149,83.109,18.50687148]
[1772437604685,3.9717079,83.14,83.109,18.50687148]
[1772437604885,3.9717079,83.14,83.11,7.9520359]
[1772437609893,8.88410341,83.149,83.115,8.03909246]
[1772437610198,11.18935302,83.192,83.101,8.05298806]
[1772437610199,9.26163914,83.139,83.101,8.05298806]
[1772437610394,3.9717079,83.13,83.101,8.05298806]
[1772437611498,9.26163914,83.139,83.101,8.05298806]
[1772437612497,3.9717079,83.13,83.101,8.05298806]
[1772437617103,9.26163914,83.129,83.095,10.831]
[1772437617299,9.26163914,83.129,83.096,7.94244841]
[1772437621304,9.26163914,83.119,83.086,10.832]
[1772437621501,3.9717079,83.11,83.086,10.832]
[1772437622106,9.26163914,83.119,83.086,10.832]
[1772437622607,3.9717079,83.11,83.084,7.9466243]
[1772437626012,3.9717079,83.1,83.07,8.009802]
[1772437627710,9.26163914,83.109,83.07,8.009802]
[1772437628303,3.9717079,83.12,83.081,8.04556261]
[1772437628507,22.60797298,83.146,83.068,7.71548358]
[1772437628508,3.9717079,83.1,83.068,7.71548358]
[1772437628906,13.23334704,83.1,83.068,7.71548358]
[1772437630010,22.60797298,83.146,83.071,7.73741324]
[1772437630011,3.9717079,83.11,83.071,7.73741324]
[1772437631313,9.26163914,83.109,83.071,7.73741324]
[1772437632917,10.828,83.119,83.081,7.8325526]
[1772437632918,9.26163914,83.119,83.081,7.8325526]
[1772437633514,3.9717079,83.11,83.081,7.8325526]
[1772437633819,3.9717079,83.1,83.071,7.83248774]
[1772437635122,13.18234574,83.1,83.061,7.91792398]
[1772437635319,9.21063784,83.099,83.061,7.91792398]
[1772437635914,3.9717079,83.08,83.05,7.92795061]
[1772437636318,9.21063784,83.089,83.05,11.89965851]
[1772437636717,3.9717079,83.07,83.031,7.73149247]
[1772437637117,3.9717079,83.07,82.981,29.93440761]
[1772437637118,13.18234574,83.09,83.051,7.76023029]
[1772437637320,22.60797298,83.146,83.01,22.52113301]
[1772437637321,3.9717079,83.1,83.062,7.76023029]
[1772437637522,8.93131563,83.103,83.062,7.76023029]
[1772437638522,8.93131563,83.117,83.075,7.74878141]
[1772437639224,3.97221233,83.11,83.075,7.74878141]
[1772437639719,3.97221233,83.1,83.065,7.75810121]
[1772437640421,8.93131563,83.109,83.068,7.6545991]
[1772437640718,3.97221233,83.11,83.071,7.6545991]
[1772437641019,12.90352796,83.12,83.071,7.6545991]
[1772437641325,12.90352796,83.12,83.081,7.66391648]
[1772437642028,3.97221233,83.12,83.081,7.66391648]
[1772437642226,3.97221233,83.12,83.083,7.67298345]
[1772437643621,8.93131563,83.132,83.091,7.61809443]
[1772437643826,8.93131563,83.132,83.09,3.97221233]
[1772437643827,12.90352796,83.14,83.101,7.62708144]
[1772437644022,22.60797298,83.146,83.111,7.62708144]
[1772437645016,3.97221233,83.15,83.111,7.62708144]
[1772437645621,3.97221233,83.14,83.111,7.62708144]
[1772437648032,8.93131563,83.139,83.099,7.63088011]
[1772437648227,3.97221233,83.13,83.099,7.63088011]
[1772437648827,3.97221233,83.12,83.088,7.59683115]
[1772437649728,8.93131563,83.129,83.088,7.59683115]
[1772437650631,8.93131563,83.119,83.08,3.97221233]
[1772437651936,3.97221233,83.11,83.077,7.61569252]
[1772437654337,8.93131563,83.129,83.081,7.6931215]
[1772437655235,8.93131563,83.129,83.083,7.70071096]
[1772437656638,8.93131563,83.129,83.09,3.97221233]
[1772437658438,3.97221233,83.12,83.083,7.70071096]
[1772437659442,12.90352796,83.12,83.083,7.70071096]
[1772437659645,12.90352796,83.11,83.073,7.57062105]
[1772437659940,3.97221233,83.12,83.073,7.57062105]
[1772437660143,3.97221233,83.12,83.083,7.5780814]
[1772437663348,12.90352796,83.12,83.083,7.5780814]
[1772437663546,3.97221233,83.11,83.083,7.5780814]
[1772437664049,8.93131563,83.119,83.083,7.5780814]
[1772437668457,9.27036462,83.109,83.073,7.48976137]
[1772437669460,3.97221233,83.12,83.073,7.48976137]
[1772437669662,13.24257695,83.12,83.073,7.48976137]
[1772437669862,9.27036462,83.119,83.073,7.48976137]
[1772437670263,9.27036462,83.119,83.075,7.50303061]
[1772437672064,9.27036462,83.119,83.076,10.834]
[1772437673470,3.97221233,83.11,83.076,10.834]
[1772437673869,9.27036462,83.109,83.076,10.834]
[1772437674066,9.27036462,83.109,83.069,14.91465901]
[1772437675171,3.97221233,83.12,83.08,3.97221233]
[1772437675371,3.97221233,83.12,83.081,7.58178807]
[1772437676363,3.97221233,83.12,83.083,10.833]
[1772437676567,9.27036462,83.119,83.083,10.833]
[1772437677062,9.27036462,83.119,83.073,10.834]
[1772437677268,9.27036462,83.109,83.071,7.78589675]
[1772437679773,9.27036462,83.109,83.073,7.70726423]
[1772437680274,9.27036462,83.119,83.073,7.70726423]
[1772437680476,3.97221233,83.13,83.081,7.75138639]
[1772437680672,9.27036462,83.132,83.091,7.75138639]
[1772437681270,3.97221233,83.13,83.091,7.75138639]
[1772437682268,3.97221233,83.13,83.093,7.76316255]
[1772437683475,9.27036462,83.129,83.093,7.76316255]
[1772437684575,3.97221233,83.12,83.093,7.76316255]
[1772437686077,3.97221233,83.12,83.084,14.91465901]
[1772437686278,3.97221233,83.12,83.084,22.66965239]
[1772437686478,3.97221233,83.12,83.087,10.832]
[1772437687570,3.97221233,83.12,83.087,18.55601275]
[1772437688779,3.97221233,83.12,83.088,7.74598639]
[1772437690975,3.97221233,83.12,83.089,18.59429529]
[1772437691175,3.97221233,83.12,83.09,7.76229529]
[1772437691881,3.97221233,83.13,83.094,7.7673844]
[1772437692381,3.97221233,83.13,83.077,22.52113301]
[1772437692382,3.97221233,83.14,83.101,7.7673844]
[1772437692781,9.27036462,83.139,83.101,7.7673844]
[1772437693282,9.27036462,83.139,83.102,10.83]
[1772437693477,3.97221233,83.13,83.102,10.83]
[1772437693678,3.97221233,83.13,83.087,22.52113301]
[1772437693679,9.27036462,83.109,83.078,22.52113301]
[1772437693884,9.27036462,83.109,83.077,7.75622349]
[1772437694379,3.97221233,83.11,83.079,9.06355207]
[1772437694778,9.27036462,83.121,83.081,20.37563983]
[1772437694978,3.97221233,83.12,83.082,9.54263983]
[1772437696176,3.97221233,83.12,83.085,10.832]
[1772437698390,3.97221233,83.12,83.085,20.44339828]
[1772437699079,3.97221233,83.12,83.086,9.61139828]
[1772437700588,3.97080228,83.12,83.086,9.61139828]
[1772437701491,3.97080228,83.12,83.085,10.832]
[1772437701492,9.27036462,83.121,83.089,9.61139828]
[1772437701789,3.97080228,83.12,83.089,9.61139828]
[1772437702390,3.97080228,83.12,83.091,9.61139828]
[1772437703994,3.97080228,83.13,83.091,9.61139828]
[1772437704793,9.59327789,83.144,83.104,9.61139828]
[1772437705195,3.97080228,83.15,83.111,9.61139828]
[1772437705692,3.97080228,83.14,83.111,9.61139828]
[1772437705889,9.59327789,83.149,83.111,9.61139828]
[1772437707095,3.97080228,83.14,83.111,9.61139828]
[1772437711292,3.97080228,83.14,83.113,10.829]
[1772437711499,3.97080228,83.17,83.131,9.61139828]
[1772437711694,9.59327789,83.169,83.131,9.61139828]
[1772437714697,3.97080228,83.17,83.137,9.61139828]
[1772437717297,9.59327789,83.169,83.123,9.61139828]
[1772437717502,3.97080228,83.17,83.13,3.97080228]
[1772437717696,9.59327789,83.179,83.131,9.61139828]
[1772437717904,9.59327789,83.189,83.141,9.61139828]
[1772437718100,3.97080228,83.18,83.141,9.61139828]
[1772437719302,3.97080228,83.18,83.143,10.825]
[1772437719506,3.97080228,83.17,83.143,10.825]
[1772437719700,3.97080228,83.17,83.141,9.61139828]
[1772437725908,9.59327789,83.177,83.142,20.43639828]
[1772437726207,3.97080228,83.17,83.142,20.43639828]
[1772437727608,3.97080228,83.17,83.143,9.72924259]
[1772437729912,9.59327789,83.177,83.143,9.72924259]
[1772437730411,3.97080228,83.17,83.143,9.72924259]
[1772437735515,9.59327789,83.177,83.143,9.72924259]
[1772437737016,9.59327789,83.177,83.145,10.825]
[1772437737214,3.97080228,83.19,83.146,9.72924259]
[1772437737419,3.97080228,83.19,83.093,168.497]
[1772437737420,287.54960054,83.215,83.18,13.70004487]
[1772437737720,287.54960054,83.215,83.181,9.72924259]
[1772437739618,9.46525151,83.214,83.139,21.651]
[1772437739823,9.46525151,83.209,83.17,3.97080228]
[1772437740023,9.46525151,83.209,83.171,9.72924259]
[1772437741325,9.46525151,83.199,83.16,3.97080228]
[1772437741518,3.97080228,83.19,83.152,9.72924259]
[1772437741923,3.97080228,83.18,83.14,13.70004487]
[1772437742123,3.97080228,83.18,83.14,9.72924259]
[1772437742421,13.43605379,83.18,83.14,9.72924259]
[1772437743327,13.43605379,83.18,83.141,10.825]
[1772437745930,3.97080228,83.17,83.141,10.825]
[1772437747328,3.97080228,83.16,83.131,10.826]
[1772437747531,2.09247161,83.214,83.107,9.72924259]
[1772437747532,3.97080228,83.14,83.107,9.72924259]
[1772437747929,3.97080228,83.13,83.107,9.72924259]
[1772437748533,3.97080228,83.13,83.097,10.831]
[1772437749232,13.43605379,83.13,83.093,9.72924259]
[1772437749531,3.97080228,83.12,83.093,9.72924259]
[1772437750841,13.43605379,83.12,83.078,9.72924259]
[1772437751524,13.43605379,83.12,83.079,20.56224259]
[1772437751723,13.43605379,83.12,83.08,13.70004487]
[1772437752934,13.43605379,83.12,83.081,9.72924259]
[1772437753136,13.43605379,83.12,83.082,20.56224259]
[1772437754536,9.97343651,83.119,83.082,10.833]
[1772437755834,9.97343651,83.119,83.082,20.81695362]
[1772437756035,22.20711156,83.157,82.893,119.76143941]
[1772437756036,9.97343651,83.149,83.11,3.97080228]
[1772437756232,9.97343651,83.149,83.101,9.98395362]
[1772437757234,3.97080228,83.14,83.103,9.45046378]
[1772437760639,3.96864188,83.14,83.103,9.45046378]
[1772437760840,9.97343651,83.149,83.103,9.45046378]
[1772437761939,9.97343651,83.149,83.106,9.45046378]
[1772437762237,9.97343651,83.149,83.111,9.45046378]
[1772437762839,9.97343651,83.149,83.113,10.829]
[1772437763037,9.97343651,83.149,83.111,9.45046378]
[1772437770939,9.97343651,83.149,83.094,9.45046378]
[1772437771137,3.96864188,83.12,83.082,9.45046378]
[1772437771337,13.64554553,83.12,83.082,9.45046378]
[1772437771636,9.67690365,83.119,83.082,9.45046378]
[1772437772343,3.96864188,83.11,83.075,10.834]
[1772437772543,9.67690365,83.119,83.077,20.28446378]
[1772437774036,9.67690365,83.119,83.078,9.45046378]
[1772437775546,9.67690365,83.119,83.081,9.45046378]
[1772437776248,9.67690365,83.119,83.083,10.833]
[1772437779442,9.67690365,83.119,83.09,3.96864188]
[1772437779945,9.67690365,83.119,83.083,20.28346378]
[1772437786551,9.67690365,83.119,83.073,10.834]
[1772437786849,9.67690365,83.109,83.073,10.834]
[1772437787948,3.96864188,83.1,83.065,9.98910892]
[1772437788148,9.67690365,83.109,83.065,9.98910892]
[1772437789251,9.67690365,83.109,83.07,3.96864188]
[1772437789452,9.67690365,83.109,83.07,13.9577508]
[1772437789754,10.04351739,83.133,83.091,9.98910892]
[1772437790847,3.96864188,83.13,83.091,9.98910892]
[1772437792549,3.96864188,83.12,83.08,3.96864188]
[1772437792746,14.01215927,83.12,83.08,3.96864188]
[1772437792945,3.96864188,83.13,83.09,3.96864188]
[1772437793150,3.96864188,83.13,83.091,9.98910892]
[1772437793746,10.04351739,83.129,83.091,9.98910892]
[1772437793948,3.96864188,83.11,83.072,9.98910892]
[1772437794546,10.04351739,83.109,83.061,9.98910892]
[1772437794955,10.04351739,83.109,83.07,3.96864188]
[1772437795145,10.04351739,83.109,83.072,9.98910892]
[1772437796251,10.04351739,83.109,83.075,10.834]
[1772437798460,10.04351739,83.109,83.072,9.98910892]
[1772437799560,10.04351739,83.109,83.08,3.96864188]
[1772437799758,10.04351739,83.123,83.081,9.98910892]
[1772437800453,3.96864188,83.13,83.09,3.96864188]
[1772437800659,10.04351739,83.135,83.091,9.98910892]
[1772437800959,10.04351739,83.135,83.1,3.96864188]
[1772437801959,10.04351739,83.135,83.101,9.98910892]
[1772437803063,3.96864188,83.15,83.111,9.98910892]
[1772437803658,14.01215927,83.15,83.111,9.98910892]
[1772437805061,10.04351739,83.149,83.111,9.98910892]
[1772437809964,3.96864188,83.14,83.111,9.98910892]
[1772437810167,3.96864188,83.13,83.097,9.98910892]
[1772437812266,3.96864188,83.13,83.097,20.82010892]
[1772437812464,14.01215927,83.15,83.111,9.98910892]
[1772437813365,10.04351739,83.15,83.111,9.98910892]
[1772437813665,14.01215927,83.15,83.111,9.98910892]
[1772437813864,10.04351739,83.149,83.111,9.98910892]
[1772437814067,10.04351739,83.139,83.1,3.96864188]
[1772437814868,10.04351739,83.139,83.1,13.92146455]
[1772437815267,10.04351739,83.139,83.101,9.95282267]
[1772437818970,3.96864188,83.13,83.09,3.96864188]
[1772437819168,9.4485551,83.129,83.09,3.96864188]
[1772437820262,9.4485551,83.129,83.09,13.79537299]
[1772437820468,9.4485551,83.129,83.091,9.82673111]
[1772437824776,9.4485551,83.15,83.11,3.97036088]
[1772437825170,13.41891598,83.15,83.11,3.97036088]
[1772437825369,9.4485551,83.149,83.11,3.97036088]
[1772437827477,22.20711156,83.157,83.101,9.82673111]
[1772437827478,3.97036088,83.14,83.101,9.82673111]
[1772437827677,9.4485551,83.139,83.101,9.82673111]
[1772437835086,9.4485551,83.138,83.091,9.82673111]
[1772437835288,9.4485551,83.156,83.1,3.97036088]
[1772437835583,3.97036088,83.15,83.101,9.82673111]
[1772437835782,3.97036088,83.14,83.101,9.82673111]
[1772437836885,13.41891598,83.14,83.101,9.82673111]
[1772437838387,9.4485551,83.139,83.101,9.82673111]
[1772437839981,10.824,83.148,83.101,9.82673111]
[1772437840186,31.65566666,83.157,83.111,9.82673111]
[1772437840586,9.4485551,83.17,83.131,9.82673111]
[1772437842396,9.4485551,83.181,83.141,9.82673111]
[1772437842699,9.4485551,83.187,83.141,9.82673111]
[1772437843600,3.97036088,83.18,83.141,9.82673111]
[1772437851111,3.97036088,83.16,83.127,9.54426533]
[1772437855411,3.97036088,83.15,83.116,9.54426533]
[1772437855619,3.97036088,83.14,83.103,9.54426533]
[1772437856815,3.97036088,83.15,83.103,9.54426533]
[1772437857415,3.97036088,83.14,83.103,9.54426533]
[1772437859210,13.57635088,83.14,83.103,9.54426533]
[1772437859612,3.97036088,83.13,83.103,9.54426533]
[1772437860618,13.57635088,83.14,83.103,9.54426533]
[1772437862418,3.97036088,83.13,83.103,9.54426533]
[1772437862816,3.97036088,83.13,83.091,9.54426533]
[1772437864214,20.43299,83.129,83.091,9.54426533]
[1772437864519,20.43299,83.129,83.059,22.36653805]
[1772437864520,3.97036088,83.1,83.061,9.54426533]
[1772437865309,3.97036088,83.1,83.064,10.835]
[1772437865514,9.60599,83.109,83.065,9.54426533]
[1772437867315,3.97036088,83.1,83.065,9.54426533]
[1772437870819,3.97036088,83.08,83.051,9.54426533]
[1772437871321,3.97036088,83.08,83.04,9.54426533]
[1772437872119,3.97036088,83.08,83.04,13.51462621]
[1772437873917,9.92400281,83.079,83.04,9.54426533]
[1772437874119,3.97036088,83.07,83.04,9.54426533]
[1772437874319,9.92400281,83.079,83.04,9.54426533]
[1772437876615,3.97036088,83.07,83.04,9.54426533]
[1772437878122,10.12285495,83.103,83.05,3.97036088]
[1772437878425,10.12285495,83.103,83.014,468.98160344]
[1772437878426,10.12285495,83.13,83.071,10.00029508]
[1772437878624,10.12285495,83.13,83.024,168.636]
[1772437878625,14.09321583,83.13,83.09,3.97036088]
[1772437878925,14.09321583,83.13,83.081,10.00029508]